lending/lending_fUSD_20251116
["ID","MTS","AMOUNT","RATE_DAILY","PERIOD"]
[394081216,1763251248281,166.66,0.00015602,2]
[394081217,1763251600035,154.5118767,0.00015638,2]
[394081220,1763251700987,342.29922,0.00015596,2]
[394081221,1763251730874,857.83734866,0.00015596,2]
[394081222,1763251730903,10000.01,0.00015596,2]
[394081223,1763251730927,10000.01,0.00015596,2]
[394081224,1763251730952,969.64494175,0.00015596,2]
[394081225,1763251741093,150.0,0.00030134,120]
[394081227,1763251778538,1494.23967867,0.00015694,5]
[394081230,1763251831758,-300.0,0.00015693,2]
[394081231,1763251831768,-300.0,0.00015693,2]
[394081232,1763251831777,-1200.0,0.00015693,2]
[394081233,1763251831786,-300.0,0.00015693,2]
[394081234,1763251831795,-596.90623872,0.00015694,2]
[394081235,1763251831804,-196.80819906,0.00015694,2]
[394081236,1763251831813,-500.0,0.00015694,2]
[394081237,1763251831822,-500.0,0.00015694,2]
[394081238,1763251831831,-500.0,0.00015694,2]
[394081239,1763251831841,-500.0,0.00015694,2]
[394081240,1763251831850,-500.0,0.00015694,2]
[394081241,1763251831859,-500.0,0.00015694,2]
[394081242,1763251831869,-500.0,0.00015694,2]
[394081243,1763251831878,-500.0,0.00015694,2]
[394081244,1763251831888,-500.0,0.00015694,2]
[394081245,1763251831898,-500.0,0.00015694,2]
[394081246,1763251831908,-500.0,0.00015694,2]
[394081247,1763251831917,-500.0,0.00015694,2]
[394081248,1763251831927,-500.0,0.00015694,2]
[394081249,1763251831936,-500.0,0.00015694,2]
[394081250,1763251831945,-500.0,0.00015694,2]
[394081251,1763251831955,-500.0,0.00015694,2]
[394081252,1763251831964,-500.0,0.00015694,2]
[394081253,1763251831973,-500.0,0.00015694,2]
[394081254,1763251831982,-500.0,0.00015694,2]
[394081255,1763251831992,-500.0,0.00015694,2]
[394081256,1763251832001,-500.0,0.00015694,2]
[394081257,1763251832010,-495.73146968,0.00015694,2]
[394081258,1763251832020,-500.0,0.00015694,2]
[394081259,1763251832029,-500.0,0.00015694,2]
[394081260,1763251832038,-500.0,0.00015694,2]
[394081261,1763251832047,-500.0,0.00015694,2]
[394081262,1763251832056,-500.0,0.00015694,2]
[394081263,1763251832065,-500.0,0.00015694,2]
[394081264,1763251832074,-500.0,0.00015694,2]
[394081265,1763251832084,-95535.21502578,0.00015695,2]
[394081266,1763251832119,-89834.6276411,0.00015695,2]
[394081276,1763251837638,-253.4450449,0.00015695,2]
[394081277,1763251837650,-8351.41654929,0.00015695,2]
[394081364,1763251839755,-478.06638032,0.00015695,2]
[394081365,1763251839768,-2717.16396875,0.00015695,2]
[394081366,1763251839829,-562830.06538986,0.00015695,2]
[394081367,1763251839840,-1000.0,0.00015696,2]
[394081368,1763251839849,-280.92767857,0.00015773,2]
[394081369,1763251839858,-322.46058965,0.00015773,2]
[394081370,1763251839868,-489.24785106,0.00015785,2]
[394081371,1763251839877,-200.0,0.00015786,2]
[394081372,1763251839887,-151.0,0.00015786,2]
[394081373,1763251839897,-151.0,0.00015786,2]
[394081374,1763251839907,-151.0,0.00015786,2]
[394081375,1763251839916,-151.0,0.00015786,2]
[394081376,1763251839926,-151.0,0.00015786,2]
[394081377,1763251839935,-151.0,0.00015786,2]
[394081378,1763251839945,-151.0,0.00015786,2]
[394081379,1763251839955,-151.0,0.00015786,2]
[394081380,1763251839964,-151.0,0.00015786,2]
[394081381,1763251839973,-151.0,0.00015786,2]
[394081382,1763251839982,-151.0,0.00015786,2]
[394081383,1763251839991,-151.0,0.00015786,2]
[394081384,1763251840001,-151.0,0.00015786,2]
[394081385,1763251840010,-151.0,0.00015786,2]
[394081386,1763251840019,-151.0,0.00015786,2]
[394081387,1763251840029,-151.0,0.00015786,2]
[394081388,1763251840039,-151.0,0.00015786,2]
[394081389,1763251840048,-151.0,0.00015786,2]
[394081390,1763251840058,-151.0,0.00015786,2]
[394081391,1763251840067,-151.0,0.00015786,2]
[394081392,1763251840076,-151.0,0.00015786,2]
[394081393,1763251840087,-151.0,0.00015786,2]
[394081394,1763251840096,-151.0,0.00015786,2]
[394081395,1763251840107,-151.0,0.00015786,2]
[394081396,1763251840117,-151.0,0.00015786,2]
[394081397,1763251840126,-151.0,0.00015786,2]
[394081398,1763251840135,-151.0,0.00015786,2]
[394081399,1763251840145,-151.0,0.00015786,2]
[394081400,1763251840155,-151.0,0.00015786,2]
[394081401,1763251840164,-177.39540095,0.00015786,2]
[394081402,1763251840173,-200.0,0.00015786,2]
[394081403,1763251840183,-200.0,0.00015786,2]
[394081404,1763251840193,-151.0,0.00015786,2]
[394081405,1763251840202,-151.0,0.00015786,2]
[394081406,1763251840211,-151.0,0.00015786,2]
[394081407,1763251840221,-151.0,0.00015786,2]
[394081408,1763251840230,-158.25999202,0.00015786,2]
[394081409,1763251840240,-1969.483,0.00015795,2]
[394081410,1763251840250,-185.419,0.00015795,2]
[394081411,1763251840259,-500.0,0.00015795,2]
[394081412,1763251840268,-500.0,0.00015795,2]
[394081413,1763251840278,-500.0,0.00015795,2]
[394081415,1763251840287,-312.59322378,0.00015795,2]
[394081417,1763251840296,-500.0,0.00015795,2]
[394081419,1763251840306,-500.0,0.00015795,2]
[394081420,1763251840315,-250.0,0.00015795,2]
[394081421,1763251840324,-509.66911117,0.00015895,2]
[394081422,1763251840333,-166.66,0.00015931,2]
[394081423,1763251840343,-1151.17956998,0.00016046,2]
[394081424,1763251840353,-1151.17956997,0.00016046,2]
[394081425,1763251840362,-668.61,0.00016048,2]
[394081426,1763251840372,-999.0,0.00016059,3]
[394081427,1763251840381,-6401.24,0.00016086,2]
[394081428,1763251840391,-1528.37,0.00016169,2]
[394081429,1763251840400,-1000.0,0.00016225,2]
[394081430,1763251840410,-166.66,0.00016259,2]
[394081431,1763251840419,-200.0,0.00016334,2]
[394081432,1763251840428,-200.0,0.00016334,2]
[394081433,1763251840437,-1154.1642194,0.00016338,2]
[394081434,1763251840446,-500.0,0.00016438,2]
[394081435,1763251840455,-500.0,0.00016438,2]
[394081436,1763251840464,-500.0,0.00016438,2]
[394081437,1763251840474,-500.0,0.00016438,2]
[394081438,1763251840483,-500.0,0.00016438,2]
[394081439,1763251840493,-500.0,0.00016438,2]
[394081440,1763251840505,-500.0,0.00016438,2]
[394081441,1763251840515,-500.0,0.00016438,2]
[394081442,1763251840524,-500.0,0.00016438,2]
[394081443,1763251840535,-500.0,0.00016438,2]
[394081444,1763251840544,-500.0,0.00016438,2]
[394081445,1763251840553,-354.81994512,0.00016438,2]
[394081446,1763251840563,-464.07300801,0.00016438,2]
[394081447,1763251840573,-500.0,0.00016438,2]
[394081448,1763251840583,-500.0,0.00016438,2]
[394081449,1763251840592,-2537.16,0.00016438,2]
[394081450,1763251840601,-166.66,0.00016588,2]
[394081451,1763251840611,-510.0,0.00016823,2]
[394081452,1763251840620,-18753.81,0.00016827,2]
[394081453,1763251840629,-352.49,0.0001687,2]
[394081454,1763251840639,-200.0,0.00016882,2]
[394081455,1763251840648,-200.0,0.00016882,2]
[394081456,1763251840658,-166.66,0.00016916,2]
[394081457,1763251840667,-250.0,0.00017,2]
[394081458,1763251840677,-150.0,0.00017046,2]
[394081459,1763251840686,-1154.16421938,0.00017119,2]
[394081460,1763251840695,-420.0,0.00017163,2]
[394081461,1763251840704,-420.0,0.00017163,2]
[394081462,1763251840713,-166.66,0.00017245,2]
[394081463,1763251840723,-1680.0,0.0001725,2]
[394081464,1763251840732,-300.0,0.00017265,2]
[394081465,1763251840741,-300.0,0.00017265,2]
[394081466,1763251840750,-300.0,0.00017265,2]
[394081467,1763251840760,-200.0,0.0001743,2]
[394081468,1763251840769,-306.37088094,0.0001743,2]
[394081469,1763251840779,-2000.0,0.000175,2]
[394081470,1763251840788,-504.0,0.00017534,2]
[394081471,1763251840798,-222.2113773,0.00017593,2]
[394081472,1763251840808,-600.0,0.00017598,2]
[394081473,1763251840818,-9999.99,0.00017728,2]
[394081474,1763251840827,-2948.05,0.00017728,2]
[394081475,1763251840836,-299.99,0.00017728,4]
[394081476,1763251840846,-999.99,0.00017728,2]
[394081477,1763251840855,-1721.82,0.00017728,2]
[394081478,1763251840864,-9999.99,0.00017728,2]
[394081479,1763251840873,-150.99,0.00017728,2]
[394081480,1763251840883,-8053.1,0.00017728,2]
[394081481,1763251840892,-7367.32,0.00017728,2]
[394081482,1763251840901,-9999.99,0.00017728,2]
[394081483,1763251840911,-6147.83,0.00017728,2]
[394081484,1763251840921,-2062.94,0.00017728,2]
[394081485,1763251840931,-4074.87,0.00017728,2]
[394081486,1763251840940,-877.27,0.00017728,2]
[394081487,1763251840949,-352.49,0.00017807,2]
[394081488,1763251840959,-21827.50229036,0.00017873,2]
[394081489,1763251840969,-500.0,0.0001789,2]
[394081490,1763251840978,-177.08959259,0.000179,2]
[394081491,1763251840987,-1154.16421938,0.000179,2]
[394081492,1763251840996,-344.39207861,0.00017973,2]
[394081493,1763251841006,-500.0,0.00017973,2]
[394081494,1763251841016,-501.30287693,0.00017973,2]
[394081495,1763251841025,-501.39959544,0.00017973,2]
[394081496,1763251841034,-500.0,0.00017973,2]
[394081497,1763251841044,-331.33778254,0.00017973,2]
[394081498,1763251841053,-649.82331284,0.00017973,2]
[394081499,1763251841063,-500.0,0.00017973,2]
[394081500,1763251841073,-336.53101736,0.00017973,2]
[394081501,1763251841082,-500.0,0.00017973,2]
[394081502,1763251841091,-500.0,0.00017973,2]
[394081503,1763251841100,-500.0,0.00017973,2]
[394081504,1763251841110,-500.0,0.00017973,2]
[394081505,1763251841119,-200.0,0.00017978,2]
[394081506,1763251841130,-500.0,0.00017982,2]
[394081507,1763251841139,-210.06111706,0.0001799,2]
[394081508,1763251841149,-148636.9585797,0.00018,2]
[394081509,1763251841159,-16657.7894116,0.00018,2]
[394081510,1763251841168,-200.0,0.00018,2]
[394081511,1763251841177,-88057.3980159,0.00018,2]
[394081512,1763251841187,-162.73771008,0.00018,2]
[394081513,1763251841196,-243607.0593609,0.00018,2]
[394081514,1763251841205,-38915.7434148,0.00018,2]
[394081515,1763251841215,-5423.74807,0.00018,2]
[394081516,1763251841224,-27423.8836684,0.00018,2]
[394081517,1763251841234,-250.0,0.00018011,2]
[394081518,1763251841243,-866.0,0.00018031,2]
[394081519,1763251841253,-1000.0,0.00018082,2]
[394081520,1763251841262,-167.083598,0.00018083,2]
[394081521,1763251841272,-151.0,0.00018083,2]
[394081522,1763251841282,-151.0,0.00018083,2]
[394081523,1763251841292,-151.0,0.00018083,2]
[394081524,1763251841301,-151.0,0.00018083,2]
[394081525,1763251841311,-152.436172,0.00018083,2]
[394081526,1763251841321,-151.0,0.00018083,2]
[394081527,1763251841331,-151.0,0.00018083,2]
[394081528,1763251841341,-151.0,0.00018083,2]
[394081529,1763251841351,-151.0,0.00018083,2]
[394081530,1763251841361,-151.0,0.00018083,2]
[394081531,1763251841371,-151.0,0.00018083,2]
[394081532,1763251841380,-159.140327,0.00018083,2]
[394081533,1763251841390,-151.0,0.00018083,2]
[394081534,1763251841399,-151.0,0.00018083,2]
[394081535,1763251841408,-151.0,0.00018083,2]
[394081536,1763251841417,-213.876581,0.00018083,2]
[394081537,1763251841427,-151.0,0.00018083,2]
[394081538,1763251841436,-151.0,0.00018083,2]
[394081539,1763251841446,-151.0,0.00018083,2]
[394081540,1763251841456,-213.876581,0.00018083,2]
[394081541,1763251841465,-2220.121972,0.00018083,2]
[394081542,1763251841474,-151.0,0.00018083,2]
[394081543,1763251841484,-213.876581,0.00018083,2]
[394081544,1763251841496,-151.0,0.00018083,2]
[394081545,1763251841506,-213.876581,0.00018083,2]
[394081546,1763251841515,-151.0,0.00018083,2]
[394081547,1763251841525,-151.0,0.00018083,2]
[394081548,1763251841534,-155.598101,0.00018083,2]
[394081549,1763251841545,-151.0,0.00018083,2]
[394081550,1763251841554,-151.0,0.00018083,2]
[394081551,1763251841563,-151.0,0.00018083,2]
[394081552,1763251841575,-151.0,0.00018083,2]
[394081553,1763251841585,-151.0,0.00018083,2]
[394081554,1763251841595,-151.0,0.00018083,2]
[394081555,1763251841604,-151.0,0.00018083,2]
[394081556,1763251841614,-151.0,0.00018083,2]
[394081557,1763251841624,-151.0,0.00018083,2]
[394081558,1763251841633,-153.797539,0.00018083,2]
[394081559,1763251841643,-151.0,0.00018083,2]
[394081560,1763251841652,-151.0,0.00018083,2]
[394081561,1763251841661,-151.0,0.00018083,2]
[394081562,1763251841670,-151.0,0.00018083,2]
[394081563,1763251841679,-151.0,0.00018083,2]
[394081564,1763251841689,-151.0,0.00018083,2]
[394081565,1763251841699,-465.726446,0.00018083,2]
[394081566,1763251841708,-151.0,0.00018083,2]
[394081567,1763251841718,-151.0,0.00018083,2]
[394081568,1763251841727,-151.0,0.00018083,2]
[394081569,1763251841737,-465.726446,0.00018083,2]
[394081570,1763251841746,-151.0,0.00018083,2]
[394081571,1763251841755,-465.726446,0.00018083,2]
[394081572,1763251841764,-151.0,0.00018083,2]
[394081573,1763251841774,-465.726446,0.00018083,2]
[394081574,1763251841784,-151.0,0.00018083,2]
[394081575,1763251841793,-151.0,0.00018083,2]
[394081576,1763251841802,-151.0,0.00018083,2]
[394081577,1763251841812,-151.0,0.00018083,2]
[394081578,1763251841822,-379.00432,0.00018083,2]
[394081579,1763251841832,-379.00432,0.00018083,2]
[394081580,1763251841842,-379.00432,0.00018083,2]
[394081581,1763251841852,-151.0,0.00018083,2]
[394081582,1763251841862,-379.00432,0.00018083,2]
[394081583,1763251841871,-151.0,0.00018083,2]
[394081584,1763251841881,-151.0,0.00018083,2]
[394081585,1763251841890,-151.0,0.00018083,2]
[394081586,1763251841900,-152.623247,0.00018083,2]
[394081587,1763251841910,-151.0,0.00018083,2]
[394081588,1763251841919,-151.0,0.00018083,2]
[394081589,1763251841928,-151.0,0.00018083,2]
[394081590,1763251841938,-151.0,0.00018083,2]
[394081591,1763251841947,-151.0,0.00018083,2]
[394081592,1763251841956,-167.572262,0.00018083,2]
[394081593,1763251841967,-151.0,0.00018083,2]
[394081594,1763251841976,-167.572262,0.00018083,2]
[394081595,1763251841986,-151.0,0.00018083,2]
[394081596,1763251841996,-167.572262,0.00018083,2]
[394081597,1763251842005,-151.0,0.00018083,2]
[394081598,1763251842014,-155.17245,0.00018083,2]
[394081599,1763251842024,-167.572262,0.00018083,2]
[394081600,1763251842033,-151.0,0.00018083,2]
[394081601,1763251842043,-151.0,0.00018083,2]
[394081602,1763251842053,-726.530881,0.00018083,2]
[394081603,1763251842062,-726.530881,0.00018083,2]
[394081604,1763251842072,-151.0,0.00018083,2]
[394081605,1763251842081,-726.530881,0.00018083,2]
[394081606,1763251842091,-151.0,0.00018083,2]
[394081607,1763251842102,-726.530881,0.00018083,2]
[394081608,1763251842111,-151.0,0.00018083,2]
[394081609,1763251842120,-151.0,0.00018083,2]
[394081610,1763251842130,-151.0,0.00018083,2]
[394081611,1763251842140,-151.0,0.00018083,2]
[394081612,1763251842150,-151.0,0.00018083,2]
[394081613,1763251842159,-256.287415,0.00018083,2]
[394081614,1763251842169,-151.0,0.00018083,2]
[394081615,1763251842179,-151.0,0.00018083,2]
[394081616,1763251842189,-218.122017,0.00018083,2]
[394081617,1763251842198,-151.0,0.00018083,2]
[394081618,1763251842208,-314.418471,0.00018083,2]
[394081619,1763251842218,-218.122017,0.00018083,2]
[394081620,1763251842230,-151.0,0.00018083,2]
[394081621,1763251842240,-151.0,0.00018083,2]
[394081622,1763251842250,-209.911042,0.00018083,2]
[394081623,1763251842260,-314.418471,0.00018083,2]
[394081624,1763251842269,-218.122017,0.00018083,2]
[394081625,1763251842279,-163.018163,0.00018083,2]
[394081626,1763251842288,-209.911042,0.00018083,2]
[394081627,1763251842297,-314.418471,0.00018083,2]
[394081628,1763251842307,-218.122017,0.00018083,2]
[394081629,1763251842316,-209.911042,0.00018083,2]
[394081630,1763251842325,-314.418471,0.00018083,2]
[394081631,1763251842335,-209.911042,0.00018083,2]
[394081632,1763251842345,-151.0,0.00018083,2]
[394081633,1763251842482,-151.0,0.00018083,2]
[394081634,1763251842512,-151.0,0.00018083,2]
[394081635,1763251842522,-151.0,0.00018083,2]
[394081636,1763251842531,-151.0,0.00018083,2]
[394081637,1763251842543,-151.0,0.00018083,2]
[394081638,1763251842552,-151.0,0.00018083,2]
[394081639,1763251842562,-151.0,0.00018083,2]
[394081640,1763251842573,-151.0,0.00018083,2]
[394081641,1763251842583,-175.174058,0.00018083,2]
[394081642,1763251842593,-151.0,0.00018083,2]
[394081643,1763251842602,-154.482396,0.00018083,2]
[394081644,1763251842611,-154.482396,0.00018083,2]
[394081645,1763251842621,-400.798332,0.00018083,2]
[394081646,1763251842630,-154.482396,0.00018083,2]
[394081647,1763251842639,-400.798332,0.00018083,2]
[394081648,1763251842648,-154.482396,0.00018083,2]
[394081649,1763251842658,-151.0,0.00018083,2]
[394081650,1763251842667,-400.798332,0.00018083,2]
[394081651,1763251842677,-400.798332,0.00018083,2]
[394081652,1763251842686,-278.78028,0.00018083,2]
[394081653,1763251842695,-151.0,0.00018083,2]
[394081655,1763251842704,-151.0,0.00018083,2]
[394081656,1763251842714,-168.382217,0.00018083,2]
[394081658,1763251842723,-278.78028,0.00018083,2]
[394081660,1763251842733,-168.382217,0.00018083,2]
[394081662,1763251842743,-151.0,0.00018083,2]
[394081663,1763251842752,-278.78028,0.00018083,2]
[394081664,1763251842761,-168.382217,0.00018083,2]
[394081665,1763251842771,-151.0,0.00018083,2]
[394081666,1763251842780,-278.78028,0.00018083,2]
[394081667,1763251842789,-323.871791,0.00018083,2]
[394081668,1763251842798,-151.0,0.00018083,2]
[394081669,1763251842808,-168.382217,0.00018083,2]
[394081670,1763251842818,-236.284916,0.00018083,2]
[394081671,1763251842828,-323.871791,0.00018083,2]
[394081672,1763251842837,-151.0,0.00018083,2]
[394081673,1763251842847,-236.284916,0.00018083,2]
[394081674,1763251842857,-268.098574,0.00018083,2]
[394081675,1763251842867,-323.871791,0.00018083,2]
[394081676,1763251842876,-236.284916,0.00018083,2]
[394081677,1763251842885,-151.0,0.00018083,2]
[394081678,1763251842895,-268.098574,0.00018083,2]
[394081679,1763251842904,-323.871791,0.00018083,2]
[394081680,1763251842914,-236.284916,0.00018083,2]
[394081681,1763251842924,-151.0,0.00018083,2]
[394081682,1763251842933,-268.098574,0.00018083,2]
[394081683,1763251842942,-280.500924,0.00018083,2]
[394081684,1763251842952,-268.098574,0.00018083,2]
[394081685,1763251842961,-184.448295,0.00018083,2]
[394081686,1763251842970,-240.968477,0.00018083,2]
[394081687,1763251842979,-4193.0,0.00018106,2]
[394081688,1763251842988,-287.14818742,0.00018164,2]
[394081689,1763251842998,-200.0,0.0001818,2]
[394081690,1763251843007,-200.0,0.00018219,2]
[394081691,1763251843016,-167.96,0.00018219,2]
[394081692,1763251843025,-1000.0,0.00018253,2]
[394081693,1763251843035,-166.66,0.00018281,2]
[394081694,1763251843044,-150.0,0.00018303,2]
[394081695,1763251843053,-1316.46,0.00018356,2]
[394081696,1763251843062,-628.9,0.00018366,2]
[394081697,1763251843071,-300.0,0.00018421,2]
[394081698,1763251843080,-1733.11678512,0.00018422,2]
[394081699,1763251843091,-237.43936952,0.00018521,2]
[394081700,1763251843100,-500.0,0.00018521,2]
[394081701,1763251843109,-1000.0,0.00018521,2]
[394081702,1763251843118,-500.0,0.00018521,2]
[394081703,1763251843128,-207.4,0.00018525,2]
[394081705,1763251843137,-200.0,0.00018526,2]
[394081707,1763251843146,-151.0,0.0001857,2]
[394081709,1763251843155,-250.0,0.0001857,2]
[394081710,1763251843164,-151.0,0.0001857,2]
[394081711,1763251843173,-250.0,0.0001857,2]
[394081712,1763251843182,-250.0,0.0001857,2]
[394081713,1763251843191,-151.0,0.0001857,2]
[394081714,1763251843200,-250.0,0.0001857,2]
[394081715,1763251843209,-250.0,0.0001857,2]
[394081716,1763251843218,-151.0,0.0001857,2]
[394081717,1763251843227,-250.0,0.0001857,2]
[394081718,1763251843236,-250.0,0.0001857,2]
[394081719,1763251843245,-151.0,0.0001857,2]
[394081720,1763251843254,-250.0,0.0001857,2]
[394081721,1763251843263,-250.0,0.0001857,2]
[394081722,1763251843272,-151.0,0.0001857,2]
[394081723,1763251843282,-250.0,0.0001857,2]
[394081724,1763251843291,-250.0,0.0001857,2]
[394081725,1763251843301,-151.0,0.0001857,2]
[394081726,1763251843310,-250.0,0.0001857,2]
[394081727,1763251843320,-250.0,0.0001857,2]
[394081728,1763251843329,-151.0,0.0001857,2]
[394081729,1763251843340,-250.0,0.0001857,2]
[394081730,1763251843349,-250.0,0.0001857,2]
[394081731,1763251843358,-151.0,0.0001857,2]
[394081732,1763251843368,-250.0,0.0001857,2]
[394081733,1763251843377,-250.0,0.0001857,2]
[394081734,1763251843386,-151.0,0.0001857,2]
[394081735,1763251843395,-250.0,0.0001857,2]
[394081736,1763251843405,-250.0,0.0001857,2]
[394081737,1763251843414,-151.0,0.0001857,2]
[394081738,1763251843423,-151.0,0.0001857,2]
[394081739,1763251843432,-250.0,0.0001857,2]
[394081740,1763251843442,-250.0,0.0001857,2]
[394081741,1763251843451,-250.0,0.0001857,2]
[394081743,1763251843461,-151.0,0.0001857,2]
[394081745,1763251843470,-250.0,0.0001857,2]
[394081747,1763251843480,-500.0,0.0001857,2]
[394081749,1763251843489,-250.0,0.0001857,2]
[394081751,1763251843503,-250.0,0.0001857,2]
[394081753,1763251843512,-500.0,0.0001857,2]
[394081755,1763251843521,-151.0,0.0001857,2]
[394081757,1763251843531,-250.0,0.0001857,2]
[394081759,1763251843540,-500.0,0.0001857,2]
[394081761,1763251843550,-151.0,0.0001857,2]
[394081763,1763251843559,-250.0,0.0001857,2]
[394081764,1763251843568,-500.0,0.0001857,2]
[394081765,1763251843577,-322.6107,0.0001857,2]
[394081766,1763251843588,-151.0,0.0001857,2]
[394081767,1763251843597,-250.0,0.0001857,2]
[394081768,1763251843606,-151.0,0.0001857,2]
[394081769,1763251843615,-500.0,0.0001857,2]
[394081770,1763251843624,-151.0,0.0001857,2]
[394081771,1763251843633,-250.0,0.0001857,2]
[394081772,1763251843643,-500.0,0.0001857,2]
[394081773,1763251843652,-151.0,0.0001857,2]
[394081774,1763251843661,-250.0,0.0001857,2]
[394081775,1763251843670,-500.0,0.0001857,2]
[394081776,1763251843679,-151.0,0.0001857,2]
[394081777,1763251843689,-250.0,0.0001857,2]
[394081778,1763251843698,-500.0,0.0001857,2]
[394081779,1763251843707,-500.0,0.0001857,2]
[394081780,1763251843716,-151.0,0.0001857,2]
[394081781,1763251843725,-250.0,0.0001857,2]
[394081782,1763251843735,-250.0,0.0001857,2]
[394081783,1763251843743,-500.0,0.0001857,2]
[394081784,1763251843753,-500.0,0.0001857,2]
[394081785,1763251843762,-250.0,0.0001857,2]
[394081786,1763251843771,-151.0,0.0001857,2]
[394081787,1763251843780,-250.0,0.0001857,2]
[394081788,1763251843790,-500.0,0.0001857,2]
[394081789,1763251843799,-500.0,0.0001857,2]
[394081790,1763251843807,-250.0,0.0001857,2]
[394081791,1763251843816,-500.0,0.0001857,2]
[394081792,1763251843825,-151.0,0.0001857,2]
[394081793,1763251843835,-250.0,0.0001857,2]
[394081794,1763251843845,-151.0,0.0001857,2]
[394081795,1763251843854,-500.0,0.0001857,2]
[394081796,1763251843864,-250.0,0.0001857,2]
[394081797,1763251843873,-250.0,0.0001857,2]
[394081798,1763251843883,-574.12855637,0.0001857,2]
[394081799,1763251843892,-250.0,0.0001857,2]
[394081800,1763251843901,-500.0,0.0001857,2]
[394081801,1763251843911,-250.0,0.0001857,2]
[394081802,1763251843920,-250.0,0.0001857,2]
[394081803,1763251843929,-500.0,0.0001857,2]
[394081804,1763251843938,-250.0,0.0001857,2]
[394081805,1763251843948,-250.0,0.0001857,2]
[394081806,1763251843957,-500.0,0.0001857,2]
[394081807,1763251843966,-250.0,0.0001857,2]
[394081808,1763251843975,-250.0,0.0001857,2]
[394081809,1763251843984,-500.0,0.0001857,2]
[394081810,1763251843994,-250.0,0.0001857,2]
[394081811,1763251844003,-250.0,0.0001857,2]
[394081812,1763251844013,-500.0,0.0001857,2]
[394081813,1763251844022,-250.0,0.0001857,2]
[394081814,1763251844031,-164.29893212,0.0001857,2]
[394081815,1763251844040,-250.0,0.0001857,2]
[394081816,1763251844050,-250.0,0.0001857,2]
[394081817,1763251844059,-250.0,0.0001857,2]
[394081818,1763251844068,-250.0,0.0001857,2]
[394081819,1763251844078,-250.0,0.0001857,2]
[394081820,1763251844088,-250.0,0.0001857,2]
[394081821,1763251844097,-250.0,0.0001857,2]
[394081822,1763251844106,-250.0,0.0001857,2]
[394081823,1763251844116,-250.0,0.0001857,2]
[394081824,1763251844126,-151.0,0.0001857,2]
[394081825,1763251844138,-151.0,0.0001857,2]
[394081826,1763251844148,-220.0,0.0001857,2]
[394081827,1763251844157,-220.0,0.0001857,2]
[394081828,1763251844168,-277.35679052,0.0001857,2]
[394081829,1763251844177,-151.0,0.0001857,2]
[394081830,1763251844187,-151.0,0.0001857,2]
[394081831,1763251844197,-879.979672,0.0001857,2]
[394081832,1763251844206,-151.0,0.0001857,2]
[394081833,1763251844215,-151.0,0.0001857,2]
[394081834,1763251844224,-879.979672,0.0001857,2]
[394081835,1763251844234,-879.979672,0.0001857,2]
[394081836,1763251844243,-879.979672,0.0001857,2]